Cogmind - Beta 15 --- EXPLORER MODE // 2025.08.13 @ 18:57:04 Player: pattypat Result: Self-destructed Performance ------------- Evolutions (6) 3000 Regions Visited (12) 2400 Robots Destroyed (128) 640 Value Destroyed (5961) 5961 Prototype IDs (9) 180 Alien Tech Used (0) 0 Bonus (2570) 2570 TOTAL SCORE: 14751 Bonus ------- Follower Combat Kills 377 Met Warlord at Base 500 MAIN.C Attacked Warlord 500 Warlord Defense Kills 1466 Friendly Fire -273 Cogmind --------- Core Integrity 862/1150 Matter 290/300 Energy 340/340 System Corruption 3% Temperature Cool (0) Movement Walking (190) Ox1 Location -4/Warlord Parts ------- > --- POWER (3) -------- Particle Reactor > --- PROPULSION (5) --- Flexi-carbon Leg Flexi-carbon Leg > --- UTILITY (8) ------ Advanced Cooling System Large Storage Unit Advanced Terrain Scan Processor Advanced Targeting Computer Improved Target Analyzer Core Analyzer Hacking Suite > --- WEAPON (4) ------- Matter Neutralizer KE Penetrator > --- INVENTORY (15) --- Light Fission Core Light Fission Core Carbon-fiber Leg Flexi-carbon Leg Flexi-carbon Leg Myomer Leg Improved Coolant Injector Improved Phase Shifter Graphene Brace Improved Component Analysis Suite Wave Gun Advanced Plasma Cannon Heavy Phase Cannon Flak Gun Gauss Cannon Peak State ------------ > --- POWER ------------ Micro Fission Core Light Antimatter Reactor Particle Reactor > --- PROPULSION ------- Armored Leg Thunder Leg Myomer Leg Myomer Leg Myomer Leg > --- UTILITY ---------- Advanced Cooling System Large Storage Unit Makeshift Terrain Scanner Advanced Terrain Scan Processor Advanced Targeting Computer Core Analyzer Improved Force Field Hacking Suite > --- WEAPON ----------- Matter Neutralizer KE Penetrator KE Penetrator KE Penetrator > --- INVENTORY -------- Light Fission Core Light Fission Core Carbon-fiber Leg Flexi-carbon Leg Flexi-carbon Leg Myomer Leg Improved Coolant Injector Improved Phase Shifter Graphene Brace Improved Component Analysis Suite Wave Gun Advanced Plasma Cannon Heavy Phase Cannon Flak Gun Gauss Cannon [Rating: 121] Favorites ----------- Power Micro Fission Core Engine Reinforced Ion Engine Power Core Micro Fission Core Reactor Particle Reactor Propulsion Flexi-carbon Leg Treads Light Treads Leg Flexi-carbon Leg Utility Large Storage Unit Device Advanced Cooling System Storage Large Storage Unit Processor Advanced Terrain Scan Processor Hackware Hacking Suite Protection Layered Medium Armor Plating Weapon KE Penetrator Energy Gun Gatling Laser Energy Cannon Matter Neutralizer Ballistic Gun KE Penetrator Ballistic Cannon Gauss Cannon Build | -11 -10 -10 -9 -8 -7 -6 -6 -5 -4 -4 -4 -4 ------- Run | Yrd Mat Min Mat Mat Fac Fac Ext Fac Fac Upp Upp War Slots Evolved 13 | . 1 . 2 2 2 2 . 2 2 . . . Power 2 | . . . 1 . . . . 1 . . . . Propulsion 3 | . 1 . 1 . . . . 1 . . . . Utility 6 | . . . . 2 1 2 . . 1 . . . Weapon 2 | . . . . . 1 . . . 1 . . . Parts Attached 133 | 7 7 . 16 12 16 16 6 20 6 14 6 7 Power 25 | 1 2 . 3 1 3 2 2 4 1 3 1 2 Engine 10 | 1 2 . 3 . 1 1 2 . . . . . Core 9 | . . . . 1 2 1 . 4 1 . . . Reactor 6 | . . . . . . . . . . 3 1 2 Propulsion 43 | 2 4 . 5 4 3 4 2 7 . 7 2 3 Treads 3 | 2 1 . . . . . . . . . . . Leg 40 | . 3 . 5 4 3 4 2 7 . 7 2 3 Wheel . | . . . . . . . . . . . . . Hover . | . . . . . . . . . . . . . Flight . | . . . . . . . . . . . . . Utility 34 | 2 . . 5 6 5 7 . 3 3 2 . 1 Device 17 | . . . . 5 2 4 . 2 2 2 . . Storage 4 | 1 . . 2 . . . . . 1 . . . Processor 8 | . . . 3 . 2 1 . 1 . . . 1 Hackware 1 | . . . . . 1 . . . . . . . Protection 4 | 1 . . . 1 . 2 . . . . . . Artifact . | . . . . . . . . . . . . . Weapon 31 | 2 1 . 3 1 5 3 2 6 2 2 3 1 Energy Gun 11 | 2 . . 2 . 1 1 2 2 1 . . . Energy Cannon 2 | . . . . . . . . . . . 2 . Ballistic Gun 17 | . 1 . 1 1 4 2 . 4 . 2 1 1 Ballistic Cannon 1 | . . . . . . . . . 1 . . . Launcher . | . . . . . . . . . . . . . Special Weapon . | . . . . . . . . . . . . . Impact Weapon . | . . . . . . . . . . . . . Slashing Weapon . | . . . . . . . . . . . . . Piercing Weapon . | . . . . . . . . . . . . . Special Melee Weapon . | . . . . . . . . . . . . . Unidentified Prototypes . | . . . . . . . . . . . . . Corrupted Parts 1 | . . . . . . . . . . . . 1 System Corruption 1 | . . . . . . . . . . . . 1 Parts Lost 6 | . . . . . . . . 3 . . . 3 Power 2 | . . . . . . . . . . . . 2 Propulsion . | . . . . . . . . . . . . . Utility 2 | . . . . . . . . 1 . . . 1 Weapon 2 | . . . . . . . . 2 . . . . Highest Loss Streak 3 | . . . . . . . . 2 . . . 3 To Critical Strikes . | . . . . . . . . . . . . . Average Backups 13 | 4 9 10 10 14 14 14 15 14 12 14 12 15 Power 2 | . 1 2 . 2 3 2 2 1 2 1 1 2 Propulsion 3 | 1 1 2 . 2 3 2 3 3 3 3 2 4 Utility 4 | 1 3 3 5 5 4 5 7 3 2 4 4 4 Weapon 3 | . 2 3 3 3 2 3 3 5 5 4 3 5 Tool/Special . | . . . . . . . . . . . . . Unused Backups 37 | . 3 . 5 4 2 3 . 4 1 2 5 8 Power 6 | . . . 1 . 1 1 . 2 . . . 1 Propulsion 7 | . 1 . . 1 . 1 . . . . 2 2 Utility 15 | . 1 . 3 3 . . . 2 1 . 3 2 Weapon 9 | . 1 . 1 . 1 1 . . . 2 . 3 Tool/Special . | . . . . . . . . . . . . . Average Slot Usage (%) 99 | . 98 100 99 99 99 99 100 99 99 100 100 98 Engine 5 | . 12 12 20 13 3 2 6 6 5 . . . Core 5 | . . . . 2 10 9 6 9 10 5 5 4 Reactor 3 | . . . . . . . . . . 8 10 9 Leg 27 | . 16 37 39 33 28 25 25 26 25 25 25 24 Device 11 | . . . . 15 14 16 12 11 14 15 15 14 Storage 6 | . 12 12 10 8 7 6 6 5 5 5 5 5 Processor 11 | . . . 8 8 9 12 12 11 15 15 15 15 Hackware 3 | . . . . . 4 6 6 5 5 5 5 5 Protection 1 | . 12 12 1 . . 1 6 4 . . . . Energy Gun 5 | . 13 12 10 8 7 6 6 5 5 5 . . Energy Cannon 1 | . . . . . . . . . . . 4 5 Ballistic Gun 11 | . 10 12 10 8 13 12 12 10 10 10 11 14 Ballistic Cannon 1 | . . . . . . . . . 5 5 3 . Peak Build Rating 121 | 7 9 9 16 30 46 63 64 89 103 115 119 121 Average Rating 70 | 5 8 9 13 25 41 59 63 83 101 113 113 117 On Entrance 51 | . 7 9 9 15 30 46 63 64 89 103 115 119 Naked Turns . | . . . . . . . . . . . . . Heaviest Build 97 | 22 22 20 45 46 47 62 65 77 86 93 97 95 Greatest Support 114 | 40 60 30 40 53 57 60 62 99 99 104 109 114 Greatest Overweight (x) 1 | . 1 . 1 . . 1 1 . . . . 1 Average Overweight (x) . | . . . . . . . 1 . . . . . Largest Inventory Capacity 30 | 10 10 10 15 15 15 15 15 15 30 15 15 15 Average Capacity 14 | 9 10 10 12 15 15 15 15 15 15 15 15 15 Most Carried 16 | 7 10 10 15 15 15 15 15 15 16 15 15 15 Average Carried 13 | 4 9 10 10 14 14 14 15 14 12 14 12 15 Final Capacity 15 | 10 10 10 15 15 15 15 15 15 15 15 15 15 Final Carried 15 | 7 10 10 15 14 15 15 15 15 14 15 15 15 Class Distribution -------------------- 34% | Scavenger-Gunner 25% | Hacker-Skirmisher 18% | Hacker-Mutant 9% | Scavenger-Skirmisher 6% | Scavenger-Mutant 5% | Hacker-Gunner Dominant Class ---------------- Hacker-Mutant | -10/Materials Hacker-Mutant | -10/Mines Hacker-Mutant | -9/Materials Hacker-Mutant | -8/Materials Hacker-Skirmisher | -7/Factory Hacker-Skirmisher | -6/Factory Hacker-Skirmisher | -6/Extension Scavenger-Skirmisher | -5/Factory Scavenger-Gunner | -4/Factory Scavenger-Gunner | -4/Upper Caves Scavenger-Gunner | -4/Upper Caves Scavenger-Gunner | -4/Warlord Resources | -11 -10 -10 -9 -8 -7 -6 -6 -5 -4 -4 -4 -4 ----------- Run | Yrd Mat Min Mat Mat Fac Fac Ext Fac Fac Upp Upp War Matter Collected 4050 | 261 221 . 396 150 391 280 289 524 338 588 386 226 Remotely . | . . . . . . . . . . . . . Salvage Created 5996 | . 242 . 612 357 492 408 624 1002 472 808 431 548 Parts 274 | . 13 . 42 17 31 19 32 39 33 25 13 10 Haulers Intercepted . | . . . . . . . . . . . . . Recyclers Shooed 2 | . . . 1 . 1 . . . . . . . Parts Field Recycled . | . . . . . . . . . . . . . Retrieved Matter . | . . . . . . . . . . . . . Parts Self-Destructed . | . . . . . . . . . . . . . Prevented . | . . . . . . . . . . . . . Kills | -11 -10 -10 -9 -8 -7 -6 -6 -5 -4 -4 -4 -4 ------- Run | Yrd Mat Min Mat Mat Fac Fac Ext Fac Fac Upp Upp War Combat Hostiles Destroyed 114 | . 6 . 16 8 9 9 6 17 11 14 8 10 Guns 95 | . 6 . 16 8 9 9 6 12 8 12 4 5 Cannons 14 | . . . . . . . . . 3 2 4 5 AOE 4 | . . . . . . . . 4 . . . . Classes Destroyed 17 | . 3 . 3 1 4 . 2 . . 1 . 3 Worker 3 | . . . . . 1 . . 1 1 . . . Builder 3 | . . . . . 1 . . . 2 . . . Recycler 1 | . . . . . . . 1 . . . . . Operator 1 | . . . . . 1 . . . . . . . Watcher 5 | . 2 . 1 . 1 . . . 1 . . . Swarmer 23 | . 2 . 5 2 . 2 . . 7 2 3 . Saboteur 1 | . . . . . . . . . . . . 1 Grunt 44 | . 4 . 6 3 5 6 . 9 . 4 3 4 Brawler 3 | . . . 2 . . . . . . . . 1 Duelist 2 | . . . 1 . . . . . . . . 1 Sentry 12 | . . . 2 2 . . 4 2 1 . 1 . Specialist 1 | . . . . . . . . . . . . 1 Hunter 12 | . . . . 1 3 . . 4 . 4 . . Programmer 7 | . . . . . 1 1 . 2 3 . . . Behemoth 3 | . . . . . . . 2 . . . 1 . Executioner 2 | . . . . . . . . . . . . 2 Tinkerer 1 | . . . . . . . . . . 1 . . Thug 5 | . . . . . . . . 1 . 4 . . Best Kill Streak 7 | . 3 . 4 3 4 3 5 5 7 6 3 4 Combat Bots Only 6 | . 3 . 4 3 3 3 4 5 4 6 3 4 Max Kills in Single Turn 4 | . 1 . 2 1 2 1 2 4 2 2 1 2 Gunslinging 1 | . . . 1 . . . 1 . . . . . Exploded 4 | . . . . . . . . 4 . . . . Melee . | . . . . . . . . . . . . . Uniques/NPCs Destroyed . | . . . . . . . . . . . . . Combat | -11 -10 -10 -9 -8 -7 -6 -6 -5 -4 -4 -4 -4 -------- Run | Yrd Mat Min Mat Mat Fac Fac Ext Fac Fac Upp Upp War Hostile Shots Fired 885 | . 42 . 74 49 48 35 183 115 38 137 71 93 Missed 304 | . 15 . 27 18 17 10 63 32 18 49 26 29 Hits 581 | . 27 . 47 31 31 25 120 83 20 88 45 64 Melee 17 | . . . 6 . . . . . . . . 11 Projectile 564 | . 27 . 41 31 31 25 120 83 20 88 45 53 AOE 2 | . . . . . . . . 2 . . . . Critical Strikes 21 | . 1 . 2 . 1 1 . 5 1 6 1 3 Actively Blocked 2 | . . . . . . . . . . 2 . . Part Disruptions 1 | . . . . . . . . . . . . 1 Damage Taken 5175 | . 189 . 394 246 257 297 725 1048 191 627 317 884 Core 515 | . 19 . 21 53 21 22 56 35 7 98 28 155 Absorbed by Shields 1323 | . . . . . . . 101 123 75 424 343 257 Ignored by Resistances 3898 | . 123 . 246 154 153 169 540 687 158 636 389 643 Regen/Repaired (Parts) 23 | . . . . . . . . . . . . 23 Core Remaining (%) 94 | 100 . 92 94 90 97 . 90 96 . . . . Volleys Fired 288 | . 19 . 47 29 29 21 20 37 17 32 22 15 Largest 4 | . 2 . 2 2 3 3 3 3 4 4 4 4 Hottest 204 | . 70 . 76 76 128 138 143 182 189 194 204 204 Shots Fired 834 | . 38 . 90 58 87 60 58 109 63 128 84 59 Gun 729 | . 38 . 90 58 87 60 58 109 46 96 43 44 Cannon 105 | . . . . . . . . . 17 32 41 15 Launcher . | . . . . . . . . . . . . . Special . | . . . . . . . . . . . . . Kinetic 553 | . 19 . 47 29 58 42 40 65 51 96 62 44 Thermal 281 | . 19 . 43 29 29 18 18 44 12 32 22 15 Explosive . | . . . . . . . . . . . . . Electromagnetic . | . . . . . . . . . . . . . Robot Hit Streak 43 | . 16 . 25 27 43 36 16 31 18 10 21 14 Robot Miss Streak 5 | . 1 . 1 1 3 2 1 2 5 1 5 1 Penetration Max 1 | . . . . . . . 1 1 1 1 1 1 Secondary Targets 11 | . 1 . 1 1 . 3 2 3 . . . . Max Gunslinging Chain 1 | . 1 . 1 1 . 1 1 1 . . . . Shots Hit Robots 612 | . 31 . 75 49 63 49 50 88 28 83 60 36 Core Hits 302 | . 13 . 29 19 32 27 30 49 24 40 20 19 Critical Kills 9 | . . . . 1 1 . 2 2 . 2 . 1 Critical Parts Destroyed 13 | . . . . . . 1 5 2 1 2 1 1 Critical Strikes 43 | . 3 . 5 5 1 2 9 4 1 8 3 2 Burn 14 | . 3 . 5 4 . 1 . . . 1 . . Destroy 24 | . . . . 1 1 1 9 4 1 4 1 2 Blast 5 | . . . . . . . . . . 3 2 . Melee Attacks . | . . . . . . . . . . . . . Impact . | . . . . . . . . . . . . . Slashing . | . . . . . . . . . . . . . Piercing . | . . . . . . . . . . . . . Sneak Attacks . | . . . . . . . . . . . . . Combat Hostiles . | . . . . . . . . . . . . . Follow-up Attacks . | . . . . . . . . . . . . . Damage Inflicted 14172 | . 389 . 1029 663 1318 1058 981 2555 976 2227 1846 1130 Guns 11353 | . 389 . 1018 643 1316 1058 981 1831 749 1745 889 734 Cannons 2047 | . . . . . . . . . 212 482 957 396 Explosions 701 | . . . . . . . . 701 . . . . Melee . | . . . . . . . . . . . . . Ramming 71 | . . . 11 20 2 . . 23 15 . . . Kinetic 7840 | . 177 . 445 267 524 628 507 919 715 1650 1274 734 Thermal 6261 | . 212 . 573 376 792 430 474 1613 246 577 572 396 Explosive . | . . . . . . . . . . . . . Electromagnetic . | . . . . . . . . . . . . . Impact . | . . . . . . . . . . . . . Slashing . | . . . . . . . . . . . . . Piercing . | . . . . . . . . . . . . . Highest Corruption 2 | . 2 2 . . . . . 1 . . . 2 Average Corruption 1 | . 1 2 . . . . . 1 . . . 1 Corruption Purged . | . . . . . . . . . . . . . Corruption Blocked . | . . . . . . . . . . . . . Effects 7 | . 1 1 . . . . . 5 . . . . Message Errors 1 | . . 1 . . . . . . . . . . Matter Fused 3 | . . . . . . . . 3 . . . . Energy Discharges 2 | . 1 . . . . . . 1 . . . . Data Loss (major) 1 | . . . . . . . . 1 . . . . Overload Shots . | . . . . . . . . . . . . . Overflow Damage 163 | . . . . . . . . 102 32 26 3 . Projectiles 61 | . . . . . . . . . 32 26 3 . Explosions 102 | . . . . . . . . 102 . . . . Melee . | . . . . . . . . . . . . . Knockbacks 4 | . . . . . . . . . 2 2 . . Impact . | . . . . . . . . . . . . . Kinetic 3 | . . . . . . . . . 1 2 . . Secondary 1 | . . . . . . . . . 1 . . . Self-Inflicted Damage . | . . . . . . . . . . . . . Shots . | . . . . . . . . . . . . . Rammed . | . . . . . . . . . . . . . Targets Rammed 9 | . . . 1 2 1 . . 2 3 . . . Kicked 9 | . . . 1 2 1 . . 2 3 . . . Crushed . | . . . . . . . . . . . . . Highest Temperature 443 | . 312 . 443 6 172 224 311 156 98 288 233 216 Average Temperature 82 | . 100 . 106 3 42 73 129 51 25 90 75 78 Received Heat Transfer 1611 | . 165 . 174 153 90 198 261 288 32 152 56 42 Effects 15 | . 1 . 9 . . 1 1 . . . 3 . Energy Bleed 4 | . 1 . 1 . . 1 1 . . . . . Interference 6 | . . . 3 . . . . . . . 3 . Damage (minor) 1 | . . . 1 . . . . . . . . . Damage (major) 4 | . . . 4 . . . . . . . . . Siege Activations . | . . . . . . . . . . . . . Martial Activations . | . . . . . . . . . . . . . Shielding Activations . | . . . . . . . . . . . . . Robots Disrupted . | . . . . . . . . . . . . . Combat Hostiles . | . . . . . . . . . . . . . Robots Corrupted . | . . . . . . . . . . . . . Combat Hostiles . | . . . . . . . . . . . . . Parts Fried . | . . . . . . . . . . . . . Impact Corruptions . | . . . . . . . . . . . . . Robots Melted 1 | . . . . . . . . 1 . . . . Combat Hostiles 1 | . . . . . . . . 1 . . . . Parts Melted 23 | . 3 . 3 1 2 . 2 5 . 2 . 5 Heat Transferred 12315 | . 851 . 1850 1258 1775 1021 1023 2317 333 888 592 407 Parts Sabotaged 6 | . . . . . . . . . . . . 6 Parts Stolen . | . . . . . . . . . . . . . Parts Stripped . | . . . . . . . . . . . . . Power Chain Reactions . | . . . . . . . . . . . . . Alert | -11 -10 -10 -9 -8 -7 -6 -6 -5 -4 -4 -4 -4 ------- Run | Yrd Mat Min Mat Mat Fac Fac Ext Fac Fac Upp Upp War Maximum Alert Level . | . . . . . . . . . . . . . Low Security (%) 100 | 100 100 100 100 100 100 100 100 100 100 . . . Level 1 . | . . . . . . . . . . . . . Level 2 . | . . . . . . . . . . . . . Level 3 . | . . . . . . . . . . . . . Level 4 . | . . . . . . . . . . . . . Level 5 . | . . . . . . . . . . . . . High Security . | . . . . . . . . . . . . . Max Security . | . . . . . . . . . . . . . Peak Influence 170 | . 65 9 116 63 92 71 111 170 140 . . . Initial 43 | . . 9 . . 10 . 10 36 43 . . . Average 21 | . 14 4 24 11 14 11 15 41 33 . . . Influence Increases 3188 | . 164 . 488 208 321 213 283 534 321 220 190 246 Destroy 0b10 Robot/C 2360 | . 120 . 340 160 180 180 200 360 220 200 160 240 Destroy 0b10 Robot/NC 90 | . 10 . 10 . 20 . 15 15 20 . . . Destroy Leader 474 | . 34 . 94 40 62 30 32 80 52 20 30 . Allied During Kill 26 | . . . . . . . 19 1 . . . 6 Successful Hack 76 | . . . 13 8 35 . 16 4 . . . . Disable Machine 28 | . . . . . 4 . . 24 . . . . Destroy Structure 89 | . . . 1 . 20 3 1 50 14 . . . Lose Combat Pursuer 45 | . . . 30 . . . . . 15 . . . Influence Decreases 3188 | . 129 35 488 175 354 183 213 514 331 330 190 246 Entered New Map 268 | . . 26 . . 23 . 20 64 77 58 . . Time Decay 2811 | . 129 9 468 175 331 183 173 405 254 272 190 222 Lost Part 40 | . . . . . . . . 30 . . . 10 Lost Ally 69 | . . . 20 . . . 20 15 . . . 14 Squads Dispatched 22 | . 1 . . 4 6 6 . 4 1 . . . Investigation 10 | . 1 . . 2 3 2 . 2 . . . . Extermination 4 | . . . . . 1 1 . 1 1 . . . Reinforcement 5 | . . . . 2 2 . . 1 . . . . Assault . | . . . . . . . . . . . . . Garrison 3 | . . . . . . 3 . . . . . . Intercept . | . . . . . . . . . . . . . Searches Triggered . | . . . . . . . . . . . . . Construction Impeded 1 | . . . . . . . . 1 . . . . Haulers Reinforced . | . . . . . . . . . . . . . Active Scanning Responses . | . . . . . . . . . . . . . Cargo Convoy Interrupts . | . . . . . . . . . . . . . Stealth | -11 -10 -10 -9 -8 -7 -6 -6 -5 -4 -4 -4 -4 --------- Run | Yrd Mat Min Mat Mat Fac Fac Ext Fac Fac Upp Upp War Distress Signals 11 | . 1 . 2 2 . . 2 1 2 . . 1 Communications Jammed . | . . . . . . . . . . . . . Distress Signals . | . . . . . . . . . . . . . Times Spotted 173 | . 11 . 25 16 17 10 12 17 14 13 8 30 Peak Tracking Total 12 | . 4 . 5 7 3 3 6 5 5 5 3 12 Tactical Retreats 2 | . . . 1 . . . . . 1 . . . Traps | -11 -10 -10 -9 -8 -7 -6 -6 -5 -4 -4 -4 -4 ------- Run | Yrd Mat Min Mat Mat Fac Fac Ext Fac Fac Upp Upp War Traps Triggered 7 | . 2 . 2 . 1 1 . . 1 . . . Indirectly . | . . . . . . . . . . . . . Trap Hack Attempts . | . . . . . . . . . . . . . Triggered . | . . . . . . . . . . . . . Disarmed 6 | . . . . . 6 . . . . . . . Reprogrammed 1 | . . . . . . . . 1 . . . . Reused . | . . . . . . . . . . . . . Traps Extracted . | . . . . . . . . . . . . . Installed . | . . . . . . . . . . . . . Triggered . | . . . . . . . . . . . . . Machines | -11 -10 -10 -9 -8 -7 -6 -6 -5 -4 -4 -4 -4 ---------- Run | Yrd Mat Min Mat Mat Fac Fac Ext Fac Fac Upp Upp War Machines Disabled 12 | . . . . . 1 . . 6 . 4 . 1 Max in Single Turn 5 | . . . . . 1 . . 5 . 2 . 1 Garrison Access 2 | . . . . . . . . 1 1 . . . Machines Repaired . | . . . . . . . . . . . . . Machines Dismantled . | . . . . . . . . . . . . . Machines Sabotaged . | . . . . . . . . . . . . . Overloaded Fab Kills . | . . . . . . . . . . . . . Hacking | -11 -10 -10 -9 -8 -7 -6 -6 -5 -4 -4 -4 -4 --------- Run | Yrd Mat Min Mat Mat Fac Fac Ext Fac Fac Upp Upp War Machines Accessed 31 | . 2 . 6 3 4 3 6 3 1 1 . 2 Terminals 25 | . 2 . 6 3 4 2 6 2 . . . . Fabricators . | . . . . . . . . . . . . . Repair Stations . | . . . . . . . . . . . . . Recycling Units . | . . . . . . . . . . . . . Scanalyzers . | . . . . . . . . . . . . . Garrison Access 3 | . . . . . . 1 . 1 1 . . . Total Hacks 77 | . 8 . 11 10 17 7 10 8 2 1 . 3 Successful 48 | . 5 . 8 7 10 1 7 5 1 1 . 3 Failed 29 | . 3 . 3 3 7 6 3 3 1 . . . Catastrophic 1 | . . . . . 1 . . . . . . . Database Lockouts . | . . . . . . . . . . . . . Manual 14 | . . . . . . . . . . 14 . . Terminals 66 | . 8 . 11 10 17 4 10 6 . . . . Fabricators . | . . . . . . . . . . . . . Repair Stations . | . . . . . . . . . . . . . Recycling Units . | . . . . . . . . . . . . . Scanalyzers . | . . . . . . . . . . . . . Garrison Access 7 | . . . . . . 3 . 2 2 . . . Terminal Hacks 46 | . 5 . 8 7 10 1 7 4 . 1 . 3 Record 10 | . 1 . . . 3 . 1 3 . . . 2 Part Schematic 4 | . . . . . 4 . . . . . . . Robot Analysis 2 | . 1 . 1 . . . . . . . . . Prototype ID Bank 6 | . 2 . 3 1 . . . . . . . . Open Door 8 | . . . . . . 1 5 . . 1 . 1 Branch Access Points 1 | . . . 1 . . . . . . . . . Machine Index 1 | . . . . . 1 . . . . . . . Alert Level 2 | . 1 . . 1 . . . . . . . . Locate Traps 2 | . . . . 1 1 . . . . . . . Disarm Traps 1 | . . . . . 1 . . . . . . . Reprogram Traps 1 | . . . . . . . . 1 . . . . Recall Investigation 1 | . . . 1 . . . . . . . . . Recall Reinforcements 1 | . . . . 1 . . . . . . . . Registered Components 2 | . . . 1 1 . . . . . . . . Zone Layout 4 | . . . 1 2 . . 1 . . . . . Fabricator Hacks . | . . . . . . . . . . . . . Repair Station Hacks . | . . . . . . . . . . . . . Recycling Unit Hacks . | . . . . . . . . . . . . . Scanalyzer . | . . . . . . . . . . . . . Garrison Access Hacks 2 | . . . . . . . . 1 1 . . . Seal Access 2 | . . . . . . . . 1 1 . . . Unauthorized Hacks . | . . . . . . . . . . . . . Terminals . | . . . . . . . . . . . . . Fabricators . | . . . . . . . . . . . . . Repair Stations . | . . . . . . . . . . . . . Recycling Units . | . . . . . . . . . . . . . Scanalyzers . | . . . . . . . . . . . . . Garrison Access . | . . . . . . . . . . . . . Data Cores Recovered 2 | . . . . . 1 . . 1 . . . . Used . | . . . . . . . . . . . . . Hacking Detections 19 | . 2 . 2 2 4 3 3 3 . . . . Full Trace Events 9 | . 1 . . 2 2 2 . 2 . . . . Feedback Events 1 | . . . . . . . . 1 . . . . Corruption 1 | . . . . . . . . 1 . . . . Feedback Blocked . | . . . . . . . . . . . . . Robot Schematics Acquired . | . . . . . . . . . . . . . Robots Built . | . . . . . . . . . . . . . Authchips . | . . . . . . . . . . . . . Time . | . . . . . . . . . . . . . Total Robot Build Rating . | . . . . . . . . . . . . . Part Schematics Acquired 4 | . . . . . 4 . . . . . . . Parts Built . | . . . . . . . . . . . . . Authchips . | . . . . . . . . . . . . . Time . | . . . . . . . . . . . . . Total Part Build Rating . | . . . . . . . . . . . . . Parts Repaired . | . . . . . . . . . . . . . Time . | . . . . . . . . . . . . . Parts Recycled . | . . . . . . . . . . . . . Recycled Matter . | . . . . . . . . . . . . . Retrieved Matter . | . . . . . . . . . . . . . Retrieved Components . | . . . . . . . . . . . . . Parts Scanalyzed . | . . . . . . . . . . . . . Part Schematics Acquired . | . . . . . . . . . . . . . Parts Damaged . | . . . . . . . . . . . . . Bothacking | -11 -10 -10 -9 -8 -7 -6 -6 -5 -4 -4 -4 -4 ------------ Run | Yrd Mat Min Mat Mat Fac Fac Ext Fac Fac Upp Upp War Used RIF Installer . | . . . . . . . . . . . . . Robots Hacked . | . . . . . . . . . . . . . Non-combat . | . . . . . . . . . . . . . Combat . | . . . . . . . . . . . . . Robot Hacks Applied . | . . . . . . . . . . . . . Relay Couplers Released 2 | . . . . . . . . . 2 . . . Machine Destruction 2 | . . . . . . . . . 2 . . . Fabnet Peak Effective % . | . . . . . . . . . . . . . Robots Rewired 5 | . . . . . . . . . . . . 5 Allies Hacked . | . . . . . . . . . . . . . Hacks Repelled . | . . . . . . . . . . . . . Allies | -11 -10 -10 -9 -8 -7 -6 -6 -5 -4 -4 -4 -4 -------- Run | Yrd Mat Min Mat Mat Fac Fac Ext Fac Fac Upp Upp War Total Allies 11 | . . 2 . . . . 4 . . . . 5 Largest Group 5 | . . 2 1 . . . 4 3 . . . 5 Highest-Rated Group 277 | . . 49 31 . . . 241 215 . . . 277 Highest-Rated Ally 159 | . . 31 31 . . . 159 153 . . . 64 Total Orders . | . . . . . . . . . . . . . Ally Attacks 112 | . . . 9 . . . 61 26 . . . 16 Total Damage 2206 | . . . 150 . . . 1139 299 . . . 618 Kills 13 | . . . 2 . . . 6 3 . . . 2 Allies Corrupted 3 | . . . . . . . . . . . . 3 Allies Melted . | . . . . . . . . . . . . . Intel | -11 -10 -10 -9 -8 -7 -6 -6 -5 -4 -4 -4 -4 ------- Run | Yrd Mat Min Mat Mat Fac Fac Ext Fac Fac Upp Upp War Active Infowar (turns) 6390 | . . . . 562 980 773 613 778 . 833 536 1315 Terrain 6164 | . . . . 336 980 773 613 778 . 833 536 1315 Structural 226 | . . . . 226 . . . . . . . . Robot Analysis Total 2 | . 1 . 1 . . . . . . . . . Derelict Logs Recovered 2 | . . . . . . . . . . 2 . . Drone Launches . | . . . . . . . . . . . . . Drone Recoveries . | . . . . . . . . . . . . . Exploration | -11 -10 -10 -9 -8 -7 -6 -6 -5 -4 -4 -4 -4 ------------- Run | Yrd Mat Min Mat Mat Fac Fac Ext Fac Fac Upp Upp War Turns Passed 9110 | 176 368 41 1030 602 980 773 613 962 556 1137 536 1336 Spaces Moved 6085 | 104 201 35 630 423 715 516 280 643 378 826 360 974 Core 7 | 7 . . . . . . . . . . . . Treads 193 | 97 96 . . . . . . . . . . . Legs 5885 | . 105 35 630 423 715 516 280 643 378 826 360 974 Wheels . | . . . . . . . . . . . . . Hover . | . . . . . . . . . . . . . Flight . | . . . . . . . . . . . . . Fastest Speed 50 | 50 120 120 120 112 112 115 192 116 122 120 120 120 Average Speed 126 | 152 143 120 132 114 114 128 192 121 122 120 120 121 Slowest Speed 192 | 160 190 120 190 120 115 192 192 122 122 122 120 190 Overloaded Moves . | . . . . . . . . . . . . . Propulsion Burnouts . | . . . . . . . . . . . . . Robots Hopped . | . . . . . . . . . . . . . Potential Cave-ins . | . . . . . . . . . . . . . Cave-ins Triggered . | . . . . . . . . . . . . . Exploration Rate (%) 32 | 6 30 14 41 40 19 9 40 15 7 79 46 76 Regions Visited 12 Branch Regions 5 Pre-discovered Areas 1 | . . . . . . . . . . 1 . . Known Exits Taken 12 | 1 1 1 1 1 1 1 1 1 1 1 1 . Unknown Exits Taken . | . . . . . . . . . . . . . Scrap Searched 6 | . . . . . . . . . . 4 2 . Spaces Dug . | . . . . . . . . . . . . . Terrain Destroyed 93 | . . . . . 25 . . 37 7 9 9 6 Melee . | . . . . . . . . . . . . . Projectile 36 | . . . . . . . . 5 7 9 9 6 AOE 57 | . . . . . 25 . . 32 . . . . Terrain Rammed . | . . . . . . . . . . . . . Walls Destroyed . | . . . . . . . . . . . . . Machines Disabled . | . . . . . . . . . . . . . Actions | -11 -10 -10 -9 -8 -7 -6 -6 -5 -4 -4 -4 -4 --------- Run | Yrd Mat Min Mat Mat Fac Fac Ext Fac Fac Upp Upp War Total 6924 | 118 245 34 743 485 814 589 314 744 434 898 416 1090 Wait 131 | . . . 13 . 32 10 . 8 11 . . 57 Move 6073 | 103 200 34 629 422 714 515 279 642 377 825 359 974 Hop . | . . . . . . . . . . . . . Pick Up 80 | 8 9 . 15 6 6 8 . 10 3 5 10 . Fast Attach 23 | 6 1 . 2 1 4 . . 1 3 1 . 4 Attach 32 | 1 2 . 5 4 2 3 . 6 5 1 3 . Detach 19 | . 2 . 3 2 1 1 . 1 5 2 2 . Swap 93 | . 5 . 11 7 10 13 6 16 3 12 7 3 Drop 136 | . 7 . 17 12 15 18 6 21 7 17 13 3 Fire 288 | . 19 . 47 29 29 21 20 37 17 32 22 15 Melee . | . . . . . . . . . . . . . Ram . | . . . . . . . . . . . . . Kick 9 | . . . 1 2 1 . . 2 3 . . . Crush . | . . . . . . . . . . . . . Escape Stasis . | . . . . . . . . . . . . . Rewire 40 | . . . . . . . 3 . . 3 . 34 Trap . | . . . . . . . . . . . . . Miscellaneous . | . . . . . . . . . . . . . Route ------- -11/Scrapyard -10/Materials -10/Mines -9/Materials (discovered 2 exits: *Mat / Min) -8/Materials -7/Factory -6/Factory -6/Extension -5/Factory -4/Factory -4/Upper Caves -4/Upper Caves -4/Warlord History --------- Turn | Location | Event 28 | -11/Scrapyard | Identified exit to Materials 28 | -11/Scrapyard | Discovered exit to Materials (range 16) 177 | -11/Scrapyard | Entered Materials 177 | -10/Materials | Evolved 1 slot: Propulsion x1 312 | -10/Materials | Build established: Hacker-Mutant 521 | -10/Materials | Identified exit to Mines 521 | -10/Materials | Discovered exit to Mines (range 14) 545 | -10/Materials | Entered Mines 572 | -10/Mines | Identified exit to Materials 572 | -10/Mines | Discovered exit to Materials (range 7) 586 | -10/Mines | Entered Materials 586 | -9/Materials | Accompanied by 1 ally 586 | -9/Materials | Evolved 2 slots: Power x1, Propulsion x1 591 | -9/Materials | Led the pair of lost Derelicts to an unsafe place 670 | -9/Materials | Identified exit to Mines 1544 | -9/Materials | Build established: Scavenger-Mutant 1563 | -9/Materials | Identified exit to Materials 1563 | -9/Materials | Discovered exit to Materials (range 16) 1616 | -9/Materials | Entered another Materials area 1616 | -8/Materials | Evolved 2 slots: Utility x2 2093 | -8/Materials | Build established: Hacker-Mutant 2195 | -8/Materials | Identified exit to Factory 2195 | -8/Materials | Discovered exit to Factory (range 16) 2218 | -8/Materials | Entered Factory 2218 | -7/Factory | Evolved 2 slots: Utility x1, Weapon x1 2588 | -7/Factory | Build established: Hacker-Skirmisher 3187 | -7/Factory | Identified exit to Factory 3187 | -7/Factory | Discovered exit to Factory (range 7) 3198 | -7/Factory | Entered another Factory area 3198 | -6/Factory | Evolved 2 slots: Utility x2 3608 | -6/Factory | Garrison activated, responded to threat 3800 | -6/Factory | Identified exit to Extension 3800 | -6/Factory | Discovered exit to Extension (range 16) 3971 | -6/Factory | Entered Extension 4066 | -6/Extension | Rescued a captive Derelict 4160 | -6/Extension | Rescued a captive Derelict 4187 | -6/Extension | Rescued A7 4246 | -6/Extension | Rescued a captive Derelict 4439 | -6/Extension | Spotted B-75 Beast 4449 | -6/Extension | Spotted B-75 Beast 4473 | -6/Extension | Destroyed B-75 Beast 4493 | -6/Extension | Destroyed B-75 Beast 4513 | -6/Extension | Identified exit to Factory 4513 | -6/Extension | Discovered exit to Factory (range 16) 4584 | -6/Extension | Entered Factory 4584 | -5/Factory | Accompanied by 3 allies (A7) 4584 | -5/Factory | Evolved 2 slots: Power x1, Propulsion x1 5003 | -5/Factory | Build established: Scavenger-Skirmisher 5495 | -5/Factory | Identified exit to Factory 5495 | -5/Factory | Discovered exit to Factory (range 16) 5546 | -5/Factory | Entered another Factory area 5546 | -4/Factory | Evolved 2 slots: Utility x1, Weapon x1 5814 | -4/Factory | Build established: Scavenger-Gunner 6080 | -4/Factory | Identified exit to Upper Caves 6080 | -4/Factory | Discovered exit to Upper Caves (range 9) 6102 | -4/Factory | Entered Upper Caves 6135 | -4/Upper Caves | Attracted the attention of an 0b10 base 6194 | -4/Upper Caves | Build established: Hacker-Gunner 6298 | -4/Upper Caves | Encountered a Warlord checkpoint 6431 | -4/Upper Caves | Learned location of Quarantine (-3) 6436 | -4/Upper Caves | Ambushed by wild Derelicts 6574 | -4/Upper Caves | Build established: Scavenger-Gunner 6579 | -4/Upper Caves | Learned 4 Research zone layouts 7220 | -4/Upper Caves | Identified exit to Upper Caves 7220 | -4/Upper Caves | Discovered exit to Upper Caves (range 11) 7239 | -4/Upper Caves | Entered another Upper Caves area 7349 | -4/Upper Caves | Spotted B-86 Titan 7407 | -4/Upper Caves | Destroyed B-86 Titan 7568 | -4/Upper Caves | Attracted the attention of an 0b10 checkpoint 7762 | -4/Upper Caves | Identified exit to Warlord 7762 | -4/Upper Caves | Discovered exit to Warlord (range 11) 7775 | -4/Upper Caves | Entered Warlord 8137 | -4/Warlord | Met Warlord 8162 | -4/Warlord | Warlord's base attacked by MAIN.C 8512 | -4/Warlord | Warlord forces counterattacked 8608 | -4/Warlord | Spotted Executioner 8610 | -4/Warlord | Spotted Executioner 8614 | -4/Warlord | Destroyed Executioner 8618 | -4/Warlord | Destroyed Executioner 8776 | -4/Warlord | Lost 18 allies 8837 | -4/Warlord | Warlord base infiltrated, sounded retreat 8879 | -4/Warlord | Lost 4 allies 9013 | -4/Warlord | Lost 4 allies 9047 | -4/Warlord | Spotted Executioner 9049 | -4/Warlord | Spotted Executioner 9111 | -4/Warlord | Self-destructed Last Messages --------------- Penetrated by Slug. Acquired Flexi-carbon Leg. Acquired 10 matter. Archangel 7b system corrupted by crushing effect. Archangel 7b knocked back. Archangel 7b system terminally corrupted. Thunder Leg severed. Door malfunctions. Acquired Imp. Target Analyzer. Mak. Terrain Scanner destroyed. Acquired Corrupted Particle Reactor. Integrated Corrupted Particle Reactor (+1). Corrupted Particle Reactor temporarily disabled. KE Penetrator severed. Penetrated by Slug. P-70 Sage triggered Fire Trap. Burning plasma bursts from the floor. P-70 Sage destroyed. Particle Reactor destroyed. Map ----- +----------------------------------------------------+ | ##################?####?###?#####?##?????????????? | | ###############################?##### ??????????? | | ########################?############ ? ?? ??????? | | #############################?#####??? ??? ???? | | ################################?####?#??#??? ? ? | | #############################?############ #?? | | ##################################?##?##?##?###??# | | ##### ####################?#########?######?### | | ##### ######## ######################## ? ? | | ##### ######## """"""""###########?#### "?" | | ##### ######## "######?######### """ | | ##### ####### "#############?## """ | | # / "################ | | + +^ ""################ """ | | # + "################ """ | | # ####### "################ """ | | ## ######## "################ | | ## ########""""""""""""###### # | | ## ########################## #+#+## | | ## ########################## # ^ | | +##### ## ################# [ / | | ^ # ################# ! # | | # # # #%#!## ;## + | | """ # b ==]%= # | | """ # =%* i ! %%%*! # | | """ ###+##/ g l@*=!% # +##+#### """ | | ^""" ###*E|b g[ p %pp m !% "### """ | | """ ###[#=/#E ## # #;#/### #### """ | | ###=##= ## *%! # ## """ | | ###*## # [! + """ | | """ ###%## # ###"" #### | | """ # #=## ; " ## | | ! """ # #=##"################## ; / [ # | | = """ # "%#% #################; / [ "# ##+## | | %= "" #"%="/= ##"""""""""""""# " / [ # | | ! *% "% ##""" """""""### | | % %!%# ##""""X ""### # | | " % =#######""" ""### " " "" | | #%! "" "###### " ""####### # " "" | | #= """ ####### ] ""####### # " " | | #^ """ ! "###### """/ ""####### # | | + " " =%= ""#####""""/ "####### | | # !%===== "#####""""]] ####### # | | # = %%!*"######""""""" ########## # | | # !/[ ""################ ############# | | + #################++############# ## | | # ###### ! ############# ## | | + ##### ### # ## | | ##+####### ### / ## | | ### " ###X################ # ## | +----------------------------------------------------+ Best States ------------- Heat Dissipation 74 Energy Generation 49 Energy Capacity 1200 Matter Stores 300 Matter Capacity 300 Sight Range 16 Terrain Scan Range 18 Terrain Scan Density 210 Armor Coverage 225 Resistance: KI 35 Resistance: TH 35 Resistance: EX 35 Resistance: EM 35 Resistance: I 35 Resistance: S 35 Resistance: P 35 Power Shielding 66 Evasion (%) 70 Targeting Accuracy 8 Target Analysis 6 Core Analysis 6 Recoil Reduction 3 Energy Filtering 30 Offensive Hacking 30 Item Schematics ----------------- Lrn. Missile Launcher | -7/Factory | Hacked Imp. Cooling System | -7/Factory | Hacked Neutrino Core | -7/Factory | Hacked Imp. Weapon Cycler | -7/Factory | Hacked Robot Schematics ------------------ None Fabricated ------------ Nothing Repaired ---------- Nothing Alien Tech Used ----------------- None Achievements -------------- A Powerful Ally? Backstab Knowing Is Half The Battle Oh No You Don't! Prison Break Respectable Loadout Challenges ------------ None Game ------ Seed CoolantGodMonowheel Manual? 0 Play Time 01:19:48 Cumulative 11.9 hours Start 2025.08.13 @ 17:33:57 End 2025.08.13 @ 18:57:04 Sessions 1 Manual Loads 0 Difficulty Explorer Special Mode None Game No. 16 Rogue 0 Adventurer 15 Explorer 1 Win Type - Total 0 Types 0/0/0/0/0/0/0/0/0/0 Lore% 14 Gallery% 18 Achievement% 18 Wizard Run 0 Options --------- Layout 1 ASCII 0 Keyboard 0 Movement Arrows Keybinds 0 Fullscreen 2 Font 24/Smallcaps Map View 50x35 Zoom Use 0% Tactical HUD 0 Map Filters NONE Filters NONE Steam 1 RUN: 5cdab615-9fdf-4948-9ec9-af697ffa4fea